Workbook

Sheet Full1
B2: Result summary | P2: Rates
A4: Species or LCA name | B4: node code | C4: node order | D4: Ancestor? (0/1) | E4: node age (order) | F4: contraction | G4: expansion | H4: gain | I4: loss | J4: multi | K4: present | L4: percentage gain | M4: percentage loss | N4: log(gain/loss) | O4: gain-loss | P4: Gain (t) | Q4: Duplication (lambda) | R4: Loss (mu) | S4: Transfer (kappa) | U4: Note: gains, duplications and transfers normalized to loss=1
A5: Homo sapiens | B5: Hsap | C5: 1 | D5: =IF(E5<2,0,1) -> 0 | E5: 1 | F5: 95.708 | G5: 1934.67 | H5: 2825.92 | I5: 633.621 | J5: 3551 | K5: 8770 | L5: =H5/K5 -> 0.3222257697 | M5: =I5/K5 -> 0.07224868871 | N5: =LOG(H5/I5) -> 0.6493303005 | O5: =H5-I5 -> 2192.299 | P5: 0.2136856346 | Q5: 3.197910199 | R5: 1 | S5: 0.1159257461
A6: Ciona intestinalis | B6: Cint | C6: 2 | D6: =IF(E6<2,0,1) -> 0 | E6: 1 | F6: 374.117 | G6: 115.726 | H6: 374.762 | I6: 2713.47 | J6: 749 | K6: 4239 | L6: =H6/K6 -> 0.08840811512 | M6: =I6/K6 -> 0.6401203114 | N6: =LOG(H6/I6) -> -0.8597694764 | O6: =H6-I6 -> -2338.708 | P6: 0.6514587612 | Q6: 0.222135982 | R6: 1 | S6: 0.006154293392 | U6: |variation | V6: duplication | W6: 1 | X6: 1
A7: Chordata | B7: CHORD | C7: 3 | D7: =IF(E7<2,0,1) -> 1 | E7: 2 | F7: 150.567 | G7: 7.43118 | H7: 192.787 | I7: 576.756 | J7: 1107.92 | K7: 6577.71 | L7: =H7/K7 -> 0.02930913646 | M7: =I7/K7 -> 0.08768340349 | N7: =LOG(H7/I7) -> -0.4759143759 | O7: =H7-I7 -> -383.969 | P7: 0.1217140993 | Q7: 0.00221150805 | R7: 1 | S7: 0.01415237016 | U7: |variation | V7: loss | W7: 1 | X7: 1
A8: Saccoglossus kowalevskii | B8: Skow | C8: 4 | D8: =IF(E8<2,0,1) -> 0 | E8: 1 | F8: 351.869 | G8: 410.736 | H8: 2436.73 | I8: 2035.4 | J8: 1551 | K8: 7363 | L8: =H8/K8 -> 0.3309425506 | M8: =I8/K8 -> 0.2764362352 | N8: =LOG(H8/I8) -> 0.07815764 | O8: =H8-I8 -> 401.33 | P8: 0.5159452489 | Q8: 0.8825045047 | R8: 1 | S8: 0.04682632292 | U8: |variation | V8: transfer | W8: 1 | X8: 1
A9: Deuterostomia | B9: DEUTERO | C9: 5 | D9: =IF(E9<2,0,1) -> 1 | E9: 3 | F9: 4.21795 | G9: 7.44694 | H9: 269.02 | I9: 15.4037 | J9: 1261.2 | K9: 6961.67 | L9: =H9/K9 -> 0.03864302675 | M9: =I9/K9 -> 0.00221264438 | N9: =LOG(H9/I9) -> 1.242159517 | O9: =H9-I9 -> 253.6163 | P9: 0.00305008931 | Q9: 1.010276461e-05 | R9: 1 | S9: 0.7316113481 | U9: |variation | V9: length | W9: 1 | X9: 1
A10: Drosophila melanogaster | B10: Dmel | C10: 6 | D10: =IF(E10<2,0,1) -> 0 | E10: 1 | F10: 294.168 | G10: 245.182 | H10: 609.36 | I10: 1964.77 | J10: 1039 | K10: 5014 | L10: =H10/K10 -> 0.1215317112 | M10: =I10/K10 -> 0.391856801 | N10: =LOG(H10/I10) -> -0.5084377757 | O10: =H10-I10 -> -1355.41 | P10: 0.5122986408 | Q10: 0.3783565178 | R10: 1 | S10: 0.01192865328 | U10: |root | V10: Poisson | W10: 0.02633027714
A11: Lottia gigantea | B11: Lgig | C11: 7 | D11: =IF(E11<2,0,1) -> 0 | E11: 1 | F11: 256.538 | G11: 232.668 | H11: 686.385 | I11: 1616.79 | J11: 1136 | K11: 5439 | L11: =H11/K11 -> 0.1261969112 | M11: =I11/K11 -> 0.2972586873 | N11: =LOG(H11/I11) -> -0.3720858303 | O11: =H11-I11 -> -930.405 | P11: 0.3787329688 | Q11: 0.6622727279 | R11: 1 | S11: 0.01697309974
A12: Protostomia | B12: PROTOS | C12: 8 | D12: =IF(E12<2,0,1) -> 1 | E12: 3 | F12: 88.4595 | G12: 1.0182 | H12: 41.7384 | I12: 380.389 | J12: 1166.72 | K12: 6369.41 | L12: =H12/K12 -> 0.006552946034 | M12: =I12/K12 -> 0.05972123007 | N12: =LOG(H12/I12) -> -0.9596921528 | O12: =H12-I12 -> -338.6506 | P12: 0.0731041021 | Q12: 1.015652119e-05 | R12: 1 | S12: 0.005056093173
A13: Bilateria | B13: BILATERIA | C13: 9 | D13: =IF(E13<2,0,1) -> 1 | E13: 4 | F13: 33.9988 | G13: 71.4206 | H13: 726.672 | I13: 101.251 | J13: 1257.66 | K13: 6708.06 | L13: =H13/K13 -> 0.1083281903 | M13: =I13/K13 -> 0.01509393178 | N13: =LOG(H13/I13) -> 0.8559391052 | O13: =H13-I13 -> 625.421 | P13: 0.02289341358 | Q13: 1.162900554 | R13: 1 | S13: 0.2546344991
A14: Nematostella vectensis | B14: Nvec | C14: 10 | D14: =IF(E14<2,0,1) -> 0 | E14: 1 | F14: 291.703 | G14: 264.015 | H14: 967.208 | I14: 1949.21 | J14: 1067 | K14: 5216 | L14: =H14/K14 -> 0.1854309816 | M14: =I14/K14 -> 0.3736982362 | N14: =LOG(H14/I14) -> -0.3043387508 | O14: =H14-I14 -> -982.002 | P14: 0.4899639746 | Q14: 0.4974229508 | R14: 1 | S14: 0.01955968745
A15: Aiptasia sp. | B15: Aipt | C15: 11 | D15: =IF(E15<2,0,1) -> 0 | E15: 1 | F15: 226.383 | G15: 850.085 | H15: 4045.05 | I15: 1306.05 | J15: 2495 | K15: 8937 | L15: =H15/K15 -> 0.4526183283 | M15: =I15/K15 -> 0.1461396442 | N15: =LOG(H15/I15) -> 0.4909640907 | O15: =H15-I15 -> 2739 | P15: 0.4589185262 | Q15: 1.559879512 | R15: 1 | S15: 0.08484611339
A16: Cnidaria | B16: CNIDARIA | C16: 12 | D16: =IF(E16<2,0,1) -> 1 | E16: 4 | F16: 122.547 | G16: 88.1613 | H16: 546.91 | I16: 431.548 | J16: 1184.26 | K16: 6198 | L16: =H16/K16 -> 0.08823975476 | M16: =I16/K16 -> 0.06962697644 | N16: =LOG(H16/I16) -> 0.1028867561 | O16: =H16-I16 -> 115.362 | P16: 0.09739024787 | Q16: 0.3007329681 | R16: 1 | S16: 0.05013960091
A17: Bilateria+Cnidaria | B17: EUMET | C17: 13 | D17: =IF(E17<2,0,1) -> 1 | E17: 5 | F17: 14.6554 | G17: 182.706 | H17: 593.133 | I17: 45.1727 | J17: 1210.91 | K17: 6082.64 | L17: =H17/K17 -> 0.09751242881 | M17: =I17/K17 -> 0.007426495732 | N17: =LOG(H17/I17) -> 1.118276038 | O17: =H17-I17 -> 547.9603 | P17: 0.0117380753 | Q17: 8.401894901 | R17: 1 | S17: 0.4003030398
A18: Trichoplax | B18: Tadh | C18: 14 | D18: =IF(E18<2,0,1) -> 0 | E18: 1 | F18: 286.024 | G18: 197.194 | H18: 633.926 | I18: 1916.6 | J18: 873 | K18: 4252 | L18: =H18/K18 -> 0.1490888993 | M18: =I18/K18 -> 0.450752587 | N18: =LOG(H18/I18) -> -0.4804929194 | O18: =H18-I18 -> -1282.674 | P18: 0.591664847 | Q18: 0.5135898572 | R18: 1 | S18: 0.01097618759
A19: Bilateria+Cnidaria+Placozoa | B19: EUMPLA | C19: 15 | D19: =IF(E19<2,0,1) -> 1 | E19: 6 | F19: 23.2419 | G19: 131.357 | H19: 465.062 | I19: 80.883 | J19: 1024.15 | K19: 5534.68 | L19: =H19/K19 -> 0.08402689948 | M19: =I19/K19 -> 0.01461385301 | N19: =LOG(H19/I19) -> 0.7596536038 | O19: =H19-I19 -> 384.179 | P19: 0.02078242174 | Q19: 3.14915678 | R19: 1 | S19: 0.1780271729
A20: Mnemiopsis leidyi | B20: Mlei | C20: 16 | D20: =IF(E20<2,0,1) -> 0 | E20: 1 | F20: 310.721 | G20: 138.31 | H20: 1686.56 | I20: 2512.06 | J20: 643 | K20: 4325 | L20: =H20/K20 -> 0.3899560694 | M20: =I20/K20 -> 0.5808231214 | N20: =LOG(H20/I20) -> -0.1730282122 | O20: =H20-I20 -> -825.5 | P20: 0.8920402387 | Q20: 0.369353214 | R20: 1 | S20: 0.02194878037
A21: Oscarella carmela | B21: Ocar | C21: 17 | D21: =IF(E21<2,0,1) -> 0 | E21: 1 | F21: 412.119 | G21: 88.3416 | H21: 2069.62 | I21: 2571.82 | J21: 511 | K21: 4451 | L21: =H21/K21 -> 0.4649786565 | M21: =I21/K21 -> 0.5778072343 | N21: =LOG(H21/I21) -> -0.09434995675 | O21: =H21-I21 -> -502.2 | P21: 0.9319503406 | Q21: 0.1150827512 | R21: 1 | S21: 0.02681300093
A22: Amphimedon queenslandica | B22: Aque | C22: 18 | D22: =IF(E22<2,0,1) -> 0 | E22: 1 | F22: 286.595 | G22: 484.518 | H22: 2047.62 | I22: 1347.82 | J22: 1397 | K22: 5653 | L22: =H22/K22 -> 0.3622182912 | M22: =I22/K22 -> 0.2384256147 | N22: =LOG(H22/I22) -> 0.1816174664 | O22: =H22-I22 -> 699.8 | P22: 0.5842603113 | Q22: 1.158906039 | R22: 1 | S22: 0.03505382379
A23: Porifera | B23: PORIFERA | C23: 19 | D23: =IF(E23<2,0,1) -> 1 | E23: 6 | F23: 75.1072 | G23: 227.727 | H23: 118.516 | I23: 315.816 | J23: 1057.44 | K23: 4953.2 | L23: =H23/K23 -> 0.0239271582 | M23: =I23/K23 -> 0.06375999354 | N23: =LOG(H23/I23) -> -0.4256571433 | O23: =H23-I23 -> -197.3 | P23: 0.08401533314 | Q23: 0.9849364902 | R23: 1 | S23: 0.01346853537
A24: Metazoa | B24: METAZOA | C24: 20 | D24: =IF(E24<2,0,1) -> 1 | E24: 7 | F24: 68.4798 | G24: 207.576 | H24: 1177.4 | I24: 259.387 | J24: 902.224 | K24: 5150.5 | L24: =H24/K24 -> 0.2285991651 | M24: =I24/K24 -> 0.0503615183 | N24: =LOG(H24/I24) -> 0.6569758252 | O24: =H24-I24 -> 918.013 | P24: 0.08942700223 | Q24: 1.568054258 | R24: 1 | S24: 0.1081800736
A25: Monosiga brevicollis | B25: Mbre | C25: 21 | D25: =IF(E25<2,0,1) -> 0 | E25: 1 | F25: 140.447 | G25: 71.0243 | H25: 1219.48 | I25: 1120.46 | J25: 493 | K25: 3896 | L25: =H25/K25 -> 0.3130082136 | M25: =I25/K25 -> 0.2875924025 | N25: =LOG(H25/I25) -> 0.03677832509 | O25: =H25-I25 -> 99.02 | P25: 0.3959581828 | Q25: 0.2253405779 | R25: 1 | S25: 0.02905870167
A26: Salpingoeca rosetta | B26: Sros | C26: 22 | D26: =IF(E26<2,0,1) -> 0 | E26: 1 | F26: 90.9577 | G26: 210.366 | H26: 1242.62 | I26: 553.602 | J26: 781 | K26: 4486 | L26: =H26/K26 -> 0.2769995542 | M26: =I26/K26 -> 0.1234065983 | N26: =LOG(H26/I26) -> 0.3511406889 | O26: =H26-I26 -> 689.018 | P26: 0.1997053158 | Q26: 1.053579796 | R26: 1 | S26: 0.05308424874
A27: Choanoflagellata | B27: CHOANOS | C27: 23 | D27: =IF(E27<2,0,1) -> 1 | E27: 4 | F27: 160.134 | G27: 75.4483 | H27: 499.743 | I27: 935.252 | J27: 584.346 | K27: 3796.98 | L27: =H27/K27 -> 0.1316159158 | M27: =I27/K27 -> 0.2463147027 | N27: =LOG(H27/I27) -> -0.272181926 | O27: =H27-I27 -> -435.509 | P27: 0.280697638 | Q27: 0.2117682774 | R27: 1 | S27: 0.01657229919
A28: Metazoa+Choanoflagellata | B28: CHOAZOA | C28: 24 | D28: =IF(E28<2,0,1) -> 1 | E28: 7 | F28: 82.4789 | G28: 63.5366 | H28: 242.644 | I28: 352.124 | J28: 669.952 | K28: 4232.49 | L28: =H28/K28 -> 0.05732890095 | M28: =I28/K28 -> 0.08319547122 | N28: =LOG(H28/I28) -> -0.1617260699 | O28: =H28-I28 -> -109.48 | P28: 0.1100030362 | Q28: 0.348666791 | R28: 1 | S28: 0.01847211225
A29: Capsaspora owczarzaki | B29: Cowc | C29: 25 | D29: =IF(E29<2,0,1) -> 0 | E29: 1 | F29: 211.362 | G29: 155.904 | H29: 1030.65 | I29: 1356.62 | J29: 664 | K29: 4016 | L29: =H29/K29 -> 0.2566359562 | M29: =I29/K29 -> 0.3378037849 | N29: =LOG(H29/I29) -> -0.1193470078 | O29: =H29-I29 -> -325.97 | P29: 0.509947445 | Q29: 0.4045658318 | R29: 1 | S29: 0.0200803693
A30: Filozoa (Met+Cho+Capsaspora) | B30: FILOZOA | C30: 26 | D30: =IF(E30<2,0,1) -> 1 | E30: 8 | F30: 46.8492 | G30: 45.6947 | H30: 364.16 | I30: 207.851 | J30: 686.67 | K30: 4341.97 | L30: =H30/K30 -> 0.08386976419 | M30: =I30/K30 -> 0.04787020638 | N30: =LOG(H30/I30) -> 0.2435401221 | O30: =H30-I30 -> 156.309 | P30: 0.06440091872 | Q30: 0.299516748 | R30: 1 | S30: 0.04732230356
A31: Sphaeroforma arctica | B31: Sarc | C31: 27 | D31: =IF(E31<2,0,1) -> 0 | E31: 1 | F31: 215.19 | G31: 35.6771 | H31: 208.932 | I31: 1148.6 | J31: 360 | K31: 2091 | L31: =H31/K31 -> 0.09991965567 | M31: =I31/K31 -> 0.5493065519 | N31: =LOG(H31/I31) -> -0.7401638504 | O31: =H31-I31 -> -939.668 | P31: 0.5809282555 | Q31: 0.1569841151 | R31: 1 | S31: 0.003652843217
A32: Creolimax fragrantissima | B32: Cfra | C32: 28 | D32: =IF(E32<2,0,1) -> 0 | E32: 1 | F32: 67.0812 | G32: 24.779 | H32: 343.387 | I32: 251.06 | J32: 573 | K32: 3123 | L32: =H32/K32 -> 0.1099542107 | M32: =I32/K32 -> 0.08039065002 | N32: =LOG(H32/I32) -> 0.1360063251 | O32: =H32-I32 -> 92.327 | P32: 0.1073708726 | Q32: 0.1109704487 | R32: 1 | S32: 0.02630733247
A33: Sphaeroforma+Creolimax | B33: ICCFSA | C33: 29 | D33: =IF(E33<2,0,1) -> 1 | E33: 2 | F33: 96.9033 | G33: 136.917 | H33: 235.82 | I33: 440.6 | J33: 619.138 | K33: 3030.67 | L33: =H33/K33 -> 0.07781117707 | M33: =I33/K33 -> 0.1453803944 | N33: =LOG(H33/I33) -> -0.2714638578 | O33: =H33-I33 -> -204.78 | P33: 0.1876500128 | Q33: 0.5007492622 | R33: 1 | S33: 0.01101225549
A34: Ichthyophonus hoferi | B34: Ihof | C34: 30 | D34: =IF(E34<2,0,1) -> 0 | E34: 1 | F34: 223.891 | G34: 58.9329 | H34: 261.02 | I34: 1682.47 | J34: 250 | K34: 1814 | L34: =H34/K34 -> 0.1438919515 | M34: =I34/K34 -> 0.927491731 | N34: =LOG(H34/I34) -> -0.8092735438 | O34: =H34-I34 -> -1421.45 | P34: 0.8910837449 | Q34: 0.09994007083 | R34: 1 | S34: 0.003429045057
A35: Ichthyophonida | B35: ICHPHO | C35: 31 | D35: =IF(E35<2,0,1) -> 1 | E35: 3 | F35: 106.982 | G35: 87.4834 | H35: 94.1255 | I35: 620.315 | J35: 574.131 | K35: 3235.45 | L35: =H35/K35 -> 0.02909193466 | M35: =I35/K35 -> 0.1917244896 | N35: =LOG(H35/I35) -> -0.8189049869 | O35: =H35-I35 -> -526.1895 | P35: 0.235428266 | Q35: 0.190907287 | R35: 1 | S35: 0.003805456073
A36: Chromosphaera perkinsii | B36: Nk52 | C36: 32 | D36: =IF(E36<2,0,1) -> 0 | E36: 1 | F36: 132.022 | G36: 160.382 | H36: 841.873 | I36: 863.515 | J36: 672 | K36: 3740 | L36: =H36/K36 -> 0.2250997326 | M36: =I36/K36 -> 0.2308863636 | N36: =LOG(H36/I36) -> -0.0110233047 | O36: =H36-I36 -> -21.642 | P36: 0.3380753916 | Q36: 0.8676651151 | R36: 1 | S36: 0.02246025723
A37: Ichthyosporea | B37: ICHTHY | C37: 33 | D37: =IF(E37<2,0,1) -> 1 | E37: 4 | F37: 9.34474 | G37: 0.000617871 | H37: 0.0164125 | I37: 46.9559 | J37: 602.367 | K37: 3761.64 | L37: =H37/K37 -> 4.363123531e-06 | M37: =I37/K37 -> 0.01248282664 | N37: =LOG(H37/I37) -> -3.45651543 | O37: =H37-I37 -> -46.9394875 | P37: 0.01406360091 | Q37: 1.016595248e-05 | R37: 1 | S37: 1.01484469e-05
A38: Corallochytrium limacisporum | B38: Clim | C38: 34 | D38: =IF(E38<2,0,1) -> 0 | E38: 1 | F38: 220.243 | G38: 67.3973 | H38: 326.672 | I38: 1367.25 | J38: 411 | K38: 2768 | L38: =H38/K38 -> 0.118017341 | M38: =I38/K38 -> 0.4939486994 | N38: =LOG(H38/I38) -> -0.6217360206 | O38: =H38-I38 -> -1040.578 | P38: 0.5522243598 | Q38: 0.1157362738 | R38: 1 | S38: 0.006012889972
A39: Teretosporea | B39: TERETO | C39: 35 | D39: =IF(E39<2,0,1) -> 1 | E39: 5 | F39: 66.8141 | G39: 0.53087 | H39: 32.1384 | I39: 409.217 | J39: 611.776 | K39: 3808.58 | L39: =H39/K39 -> 0.008438420619 | M39: =I39/K39 -> 0.1074460823 | N39: =LOG(H39/I39) -> -1.104929415 | O39: =H39-I39 -> -377.0786 | P39: 0.1137806952 | Q39: 1.015709199e-05 | R39: 1 | S39: 0.002396209747
A40: Holozoa | B40: HOLOZOA | C40: 36 | D40: =IF(E40<2,0,1) -> 1 | E40: 9 | F40: 18.6112 | G40: 20.6745 | H40: 525.519 | I40: 73.4446 | J40: 683.499 | K40: 4185.66 | L40: =H40/K40 -> 0.1255522427 | M40: =I40/K40 -> 0.01754671904 | N40: =LOG(H40/I40) -> 0.8546285526 | O40: =H40-I40 -> 452.0744 | P40: 0.02324966084 | Q40: 0.3034365299 | R40: 1 | S40: 0.1806666702
A41: Schizosaccharomyces pombe | B41: Spom | C41: 37 | D41: =IF(E41<2,0,1) -> 0 | E41: 1 | F41: 110.308 | G41: 154.737 | H41: 178.237 | I41: 686.897 | J41: 425 | K41: 2276 | L41: =H41/K41 -> 0.07831151142 | M41: =I41/K41 -> 0.3018000879 | N41: =LOG(H41/I41) -> -0.5858937559 | O41: =H41-I41 -> -508.66 | P41: 0.3593506685 | Q41: 0.3437629778 | R41: 1 | S41: 0.004566418597
A42: Neurospora crassa | B42: Ncra | C42: 38 | D42: =IF(E42<2,0,1) -> 0 | E42: 1 | F42: 101.689 | G42: 141.987 | H42: 415.19 | I42: 389.85 | J42: 484 | K42: 2810 | L42: =H42/K42 -> 0.1477544484 | M42: =I42/K42 -> 0.1387366548 | N42: =LOG(H42/I42) -> 0.02734934627 | O42: =H42-I42 -> 25.34 | P42: 0.1963395265 | Q42: 0.7385002405 | R42: 1 | S42: 0.0180020959
A43: Ascomycota | B43: ASCOMY | C43: 39 | D43: =IF(E43<2,0,1) -> 1 | E43: 2 | F43: 36.2718 | G43: 0.237114 | H43: 15.6619 | I43: 153.155 | J43: 403.769 | K43: 2784.66 | L43: =H43/K43 -> 0.005624349113 | M43: =I43/K43 -> 0.05499953316 | N43: =LOG(H43/I43) -> -0.9902867329 | O43: =H43-I43 -> -137.4931 | P43: 0.0652966651 | Q43: 1.016595248e-05 | R43: 1 | S43: 0.001988661045
A44: Cryptococcus neoformans | B44: Cneo | C44: 40 | D44: =IF(E44<2,0,1) -> 0 | E44: 1 | F44: 155.384 | G44: 47.863 | H44: 232.183 | I44: 715.337 | J44: 324 | K44: 2439 | L44: =H44/K44 -> 0.09519598196 | M44: =I44/K44 -> 0.2932911029 | N44: =LOG(H44/I44) -> -0.4886802707 | O44: =H44-I44 -> -483.154 | P44: 0.3428021416 | Q44: 0.207026376 | R44: 1 | S44: 0.006217442496
A45: Dikarya | B45: DIKARYA | C45: 41 | D45: =IF(E45<2,0,1) -> 1 | E45: 3 | F45: 218.666 | G45: 5.83369 | H45: 82.5402 | I45: 745.988 | J45: 440.565 | K45: 2922.15 | L45: =H45/K45 -> 0.02824639392 | M45: =I45/K45 -> 0.255287374 | N45: =LOG(H45/I45) -> -0.9560663246 | O45: =H45-I45 -> -663.4478 | P45: 0.3384128011 | Q45: 0.009874646243 | R45: 1 | S45: 0.002303385766
A46: Mortierella verticillata | B46: Mver | C46: 42 | D46: =IF(E46<2,0,1) -> 0 | E46: 1 | F46: 160.886 | G46: 364.087 | H46: 427.625 | I46: 846.226 | J46: 911 | K46: 3167 | L46: =H46/K46 -> 0.1350252605 | M46: =I46/K46 -> 0.2672011367 | N46: =LOG(H46/I46) -> -0.2964232776 | O46: =H46-I46 -> -418.601 | P46: 0.4006410999 | Q46: 0.7607271727 | R46: 1 | S46: 0.009943321973
A47: Spizellomyces punctatus | B47: Spun | C47: 43 | D47: =IF(E47<2,0,1) -> 0 | E47: 1 | F47: 201.531 | G47: 90.6045 | H47: 626.691 | I47: 734.292 | J47: 587 | K47: 3478 | L47: =H47/K47 -> 0.1801871765 | M47: =I47/K47 -> 0.2111247844 | N47: =LOG(H47/I47) -> -0.06881533888 | O47: =H47-I47 -> -107.601 | P47: 0.2999211231 | Q47: 0.4373578268 | R47: 1 | S47: 0.01870205887
A48: Gonapodya prolifera | B48: Gpro | C48: 44 | D48: =IF(E48<2,0,1) -> 0 | E48: 1 | F48: 193.667 | G48: 132.358 | H48: 435.817 | I48: 1361.42 | J48: 580 | K48: 2660 | L48: =H48/K48 -> 0.1638409774 | M48: =I48/K48 -> 0.5118120301 | N48: =LOG(H48/I48) -> -0.4946879595 | O48: =H48-I48 -> -925.603 | P48: 0.58278343 | Q48: 0.3750169544 | R48: 1 | S48: 0.007596869148
A49: Fungi | B49: FUNGI | C49: 45 | D49: =IF(E49<2,0,1) -> 1 | E49: 7 | F49: 63.5187 | G49: 138.46 | H49: 390.735 | I49: 247.192 | J49: 676.576 | K49: 3585.6 | L49: =H49/K49 -> 0.1089733936 | M49: =I49/K49 -> 0.06894020527 | N49: =LOG(H49/I49) -> 0.1988479034 | O49: =H49-I49 -> 143.543 | P49: 0.0989845516 | Q49: 0.8538556602 | R49: 1 | S49: 0.03260132248
A50: Fonticula alba | B50: Falb | C50: 46 | D50: =IF(E50<2,0,1) -> 0 | E50: 1 | F50: 256.266 | G50: 16.6522 | H50: 179.574 | I50: 2009.63 | J50: 199 | K50: 1612 | L50: =H50/K50 -> 0.111398263 | M50: =I50/K50 -> 1.246668734 | N50: =LOG(H50/I50) -> -1.048872649 | O50: =H50-I50 -> -1830.056 | P50: 1.022995234 | Q50: 0.04999739771 | R50: 1 | S50: 0.002184361453
A51: Holomycota | B51: HOLOMYC | C51: 47 | D51: =IF(E51<2,0,1) -> 1 | E51: 8 | F51: 85.3918 | G51: 0.565837 | H51: 35.7586 | I51: 327.286 | J51: 588.168 | K51: 3442.06 | L51: =H51/K51 -> 0.01038872071 | M51: =I51/K51 -> 0.09508433903 | N51: =LOG(H51/I51) -> -0.9615469211 | O51: =H51-I51 -> -291.5274 | P51: 0.1164937652 | Q51: 1.016595248e-05 | R51: 1 | S51: 0.002648179064
A52: Opisthokinta | B52: OPISTO | C52: 48 | D52: =IF(E52<2,0,1) -> 1 | E52: 10 | F52: 47.5146 | G52: 3.97145 | H52: 322.009 | I52: 124.4 | J52: 677.617 | K52: 3733.59 | L52: =H52/K52 -> 0.08624648127 | M52: =I52/K52 -> 0.03331913788 | N52: =LOG(H52/I52) -> 0.4130476298 | O52: =H52-I52 -> 197.609 | P52: 0.04630492257 | Q52: 1.0170124e-05 | R52: 1 | S52: 0.05582866341
A53: Thecamonas trahens | B53: Ttra | C53: 49 | D53: =IF(E53<2,0,1) -> 0 | E53: 1 | F53: 237.523 | G53: 128.959 | H53: 1959.62 | I53: 1326.59 | J53: 652 | K53: 4169 | L53: =H53/K53 -> 0.4700455745 | M53: =I53/K53 -> 0.3182034061 | N53: =LOG(H53/I53) -> 0.169435144 | O53: =H53-I53 -> 633.03 | P53: 0.5961493835 | Q53: 0.445764923 | R53: 1 | S53: 0.03357567866
A54: Obazoa (Opistho+Apusomonadida) | B54: OBAZOA | C54: 50 | D54: =IF(E54<2,0,1) -> 1 | E54: 11 | F54: 0.768966 | G54: 156.044 | H54: 34.3265 | I54: 3.18968 | J54: 722.174 | K54: 3535.98 | L54: =H54/K54 -> 0.009707775496 | M54: =I54/K54 -> 0.0009020639257 | N54: =LOG(H54/I54) -> 1.031882409 | O54: =H54-I54 -> 31.13682 | P54: 0.001013028503 | Q54: 97.87233879 | R54: 1 | S54: 0.2673013151
A55: Dictyostelium discoideum | B55: Ddis | C55: 51 | D55: =IF(E55<2,0,1) -> 0 | E55: 1 | F55: 68.2991 | G55: 169.679 | H55: 466.565 | I55: 239.758 | J55: 731 | K55: 3274 | L55: =H55/K55 -> 0.1425061087 | M55: =I55/K55 -> 0.0732309102 | N55: =LOG(H55/I55) -> 0.2891390493 | O55: =H55-I55 -> 226.807 | P55: 0.130066571 | Q55: 2.542196915 | R55: 1 | S55: 0.02945207531
A56: Polysphondylium pallidum | B56: Ppal | C56: 52 | D56: =IF(E56<2,0,1) -> 0 | E56: 1 | F56: 59.8657 | G56: 101.379 | H56: 1196.97 | I56: 354.16 | J56: 668 | K56: 3890 | L56: =H56/K56 -> 0.3077043702 | M56: =I56/K56 -> 0.0910437018 | N56: =LOG(H56/I56) -> 0.5288837567 | O56: =H56-I56 -> 842.81 | P56: 0.1484266488 | Q56: 0.8302667275 | R56: 1 | S56: 0.06748672441
A57: Dictyostelia | B57: DICTYOS | C57: 53 | D57: =IF(E57<2,0,1) -> 1 | E57: 2 | F57: 158.834 | G57: 191.843 | H57: 434.303 | I57: 759.145 | J57: 605.322 | K57: 3047.19 | L57: =H57/K57 -> 0.1425257368 | M57: =I57/K57 -> 0.2491295259 | N57: =LOG(H57/I57) -> -0.2425319066 | O57: =H57-I57 -> -324.842 | P57: 0.3600445103 | Q57: 0.7427654686 | R57: 1 | S57: 0.01116620896
A58: Acanthamoeba castellanii | B58: Acas | C58: 54 | D58: =IF(E58<2,0,1) -> 0 | E58: 1 | F58: 158.155 | G58: 333.696 | H58: 2131.14 | I58: 986.178 | J58: 938 | K58: 4517 | L58: =H58/K58 -> 0.4718042949 | M58: =I58/K58 -> 0.21832588 | N58: =LOG(H58/I58) -> 0.3346566706 | O58: =H58-I58 -> 1144.962 | P58: 0.5144221931 | Q58: 0.9786573816 | R58: 1 | S58: 0.04039877027
A59: Amoebozoa | B59: AMOEBO | C59: 55 | D59: =IF(E59<2,0,1) -> 1 | E59: 5 | F59: 85.7083 | G59: 82.8211 | H59: 282.675 | I59: 415.48 | J59: 568.381 | K59: 3372.03 | L59: =H59/K59 -> 0.08382932536 | M59: =I59/K59 -> 0.1232136132 | N59: =LOG(H59/I59) -> -0.1672627221 | O59: =H59-I59 -> -132.805 | P59: 0.1580383078 | Q59: 0.3009480181 | R59: 1 | S59: 0.01612079548
A60: Unikonta/Amorphea | B60: UNIK | C60: 56 | D60: =IF(E60<2,0,1) -> 1 | E60: 12 | F60: 0.248448 | G60: 380.577 | H60: 308.296 | I60: 21.4841 | J60: 565.56 | K60: 3504.84 | L60: =H60/K60 -> 0.08796293126 | M60: =I60/K60 -> 0.006129837596 | N60: =LOG(H60/I60) -> 1.156850725 | O60: =H60-I60 -> 286.8119 | P60: 0.008701269645 | Q60: 22.43774299 | R60: 1 | S60: 0.277969947
A61: Arabidopsis thaliana | B61: Atha | C61: 57 | D61: =IF(E61<2,0,1) -> 0 | E61: 1 | F61: 110.771 | G61: 715.1 | H61: 1122.37 | I61: 367.18 | J61: 1840 | K61: 4113 | L61: =H61/K61 -> 0.27288354 | M61: =I61/K61 -> 0.08927303671 | N61: =LOG(H61/I61) -> 0.4852570324 | O61: =H61-I61 -> 755.19 | P61: 0.3060254369 | Q61: 3.372630507 | R61: 1 | S61: 0.03211556402
A62: Physcomitrella patens | B62: Ppat | C62: 58 | D62: =IF(E62<2,0,1) -> 0 | E62: 1 | F62: 40.1545 | G62: 887.068 | H62: 840.285 | I62: 229.091 | J62: 2035 | K62: 3969 | L62: =H62/K62 -> 0.2117120181 | M62: =I62/K62 -> 0.05772008062 | N62: =LOG(H62/I62) -> 0.564418583 | O62: =H62-I62 -> 611.194 | P62: 0.1254587194 | Q62: 4.675852352 | R62: 1 | S62: 0.05526313698
A63: Embryophyta/Land plants | B63: EMBPHY | C63: 59 | D63: =IF(E63<2,0,1) -> 1 | E63: 4 | F63: 140.19 | G63: 429.343 | H63: 599.622 | I63: 580.136 | J63: 1040.03 | K63: 3357.81 | L63: =H63/K63 -> 0.1785753214 | M63: =I63/K63 -> 0.1727721342 | N63: =LOG(H63/I63) -> 0.01434774244 | O63: =H63-I63 -> 19.486 | P63: 0.3479013392 | Q63: 1.166209735 | R63: 1 | S63: 0.01584357884
A64: Chlamydomonas reinhardtii | B64: Crei | C64: 60 | D64: =IF(E64<2,0,1) -> 0 | E64: 1 | F64: 172.904 | G64: 80.6615 | H64: 564.38 | I64: 888.867 | J64: 436 | K64: 2473 | L64: =H64/K64 -> 0.2282167408 | M64: =I64/K64 -> 0.3594286292 | N64: =LOG(H64/I64) -> -0.1972651677 | O64: =H64-I64 -> -324.487 | P64: 0.48008237 | Q64: 0.407122793 | R64: 1 | S64: 0.01137273692
A65: Chlorella variabilis | B65: Cvar | C65: 61 | D65: =IF(E65<2,0,1) -> 0 | E65: 1 | F65: 160.771 | G65: 61.33 | H65: 558.422 | I65: 814.909 | J65: 418 | K65: 2541 | L65: =H65/K65 -> 0.2197646596 | M65: =I65/K65 -> 0.3207040535 | N65: =LOG(H65/I65) -> -0.1641465945 | O65: =H65-I65 -> -256.487 | P65: 0.4501618081 | Q65: 0.1416933587 | R65: 1 | S65: 0.01200797662
A66: Chlorophyta | B66: CHLORO | C66: 62 | D66: =IF(E66<2,0,1) -> 1 | E66: 4 | F66: 139.485 | G66: 25.5065 | H66: 59.9987 | I66: 600.832 | J66: 536.579 | K66: 2797.49 | L66: =H66/K66 -> 0.02144733315 | M66: =I66/K66 -> 0.2147753879 | N66: =LOG(H66/I66) -> -1.000611214 | O66: =H66-I66 -> -540.8333 | P66: 0.2324876623 | Q66: 0.07845249542 | R66: 1 | S66: 0.002461414471
A67: Viridiplantae | B67: VIRIDI | C67: 63 | D67: =IF(E67<2,0,1) -> 1 | E67: 5 | F67: 136.341 | G67: 25.4434 | H67: 367.154 | I67: 424.298 | J67: 663.191 | K67: 3338.32 | L67: =H67/K67 -> 0.1099816674 | M67: =I67/K67 -> 0.1270992595 | N67: =LOG(H67/I67) -> -0.06282272061 | O67: =H67-I67 -> -57.144 | P67: 0.1745766932 | Q67: 0.0760556334 | R67: 1 | S67: 0.01889426765
A68: Toxoplasma gondii | B68: Tgon | C68: 64 | D68: =IF(E68<2,0,1) -> 0 | E68: 1 | F68: 166.001 | G68: 80.2376 | H68: 323.156 | I68: 1017.68 | J68: 333 | K68: 1724 | L68: =H68/K68 -> 0.1874454756 | M68: =I68/K68 -> 0.5903016241 | N68: =LOG(H68/I68) -> -0.4981990158 | O68: =H68-I68 -> -694.524 | P68: 0.6883596213 | Q68: 0.2531044925 | R68: 1 | S68: 0.004964452303
A69: Tetrahymena thermophila | B69: Tthe | C69: 65 | D69: =IF(E69<2,0,1) -> 0 | E69: 1 | F69: 123.646 | G69: 248.448 | H69: 1105.14 | I69: 843.659 | J69: 674 | K69: 2680 | L69: =H69/K69 -> 0.4123656716 | M69: =I69/K69 -> 0.3147981343 | N69: =LOG(H69/I69) -> 0.1172503544 | O69: =H69-I69 -> 261.481 | P69: 0.7806416259 | Q69: 1.32157223 | R69: 1 | S69: 0.0145638821
A70: Alveolata | B70: ALVEO | C70: 66 | D70: =IF(E70<2,0,1) -> 1 | E70: 5 | F70: 306.295 | G70: 0.615099 | H70: 63.9016 | I70: 970.954 | J70: 477.456 | K70: 2418.52 | L70: =H70/K70 -> 0.02642177861 | M70: =I70/K70 -> 0.4014661859 | N70: =LOG(H70/I70) -> -1.181686923 | O70: =H70-I70 -> -907.0524 | P70: 0.4531133168 | Q70: 1.016595248e-05 | R70: 1 | S70: 0.001570491179
A71: Bigelowiella natans | B71: Bnat | C71: 67 | D71: =IF(E71<2,0,1) -> 0 | E71: 1 | F71: 251.182 | G71: 162.676 | H71: 1070.56 | I71: 1323.14 | J71: 725 | K71: 3073 | L71: =H71/K71 -> 0.3483761796 | M71: =I71/K71 -> 0.4305694761 | N71: =LOG(H71/I71) -> -0.09199478631 | O71: =H71-I71 -> -252.58 | P71: 0.6773090675 | Q71: 0.3572581103 | R71: 1 | S71: 0.01667968088
A72: Ectocarpus siliculosus | B72: Esil | C72: 68 | D72: =IF(E72<2,0,1) -> 0 | E72: 1 | F72: 230.414 | G72: 223.443 | H72: 1026.68 | I72: 857.598 | J72: 721 | K72: 3531 | L72: =H72/K72 -> 0.2907618238 | M72: =I72/K72 -> 0.2428768054 | N72: =LOG(H72/I72) -> 0.0781513424 | O72: =H72-I72 -> 169.082 | P72: 0.4330546722 | Q72: 0.652293893 | R72: 1 | S72: 0.02242378583
A73: Phytophthora infestans | B73: Pinf | C73: 69 | D73: =IF(E73<2,0,1) -> 0 | E73: 1 | F73: 213.35 | G73: 270.21 | H73: 1185.54 | I73: 879.457 | J73: 823 | K73: 3668 | L73: =H73/K73 -> 0.3232115594 | M73: =I73/K73 -> 0.2397647219 | N73: =LOG(H73/I73) -> 0.1297016016 | O73: =H73-I73 -> 306.083 | P73: 0.4718341108 | Q73: 0.778875366 | R73: 1 | S73: 0.02412721773
A74: Stramenopila/Heterokonta | B74: STRAM | C74: 70 | D74: =IF(E74<2,0,1) -> 1 | E74: 5 | F74: 150.693 | G74: 4.52941 | H74: 375.085 | I74: 338.746 | J74: 710.297 | K74: 3361.91 | L74: =H74/K74 -> 0.1115690188 | M74: =I74/K74 -> 0.1007599847 | N74: =LOG(H74/I74) -> 0.044255521 | O74: =H74-I74 -> 36.339 | P74: 0.1413612465 | Q74: 1.016292711e-05 | R74: 1 | S74: 0.0238534257
A75: SAR (Stram+Alveolata+Rhizaria) | B75: SAR | C75: 71 | D75: =IF(E75<2,0,1) -> 1 | E75: 6 | F75: 53.4454 | G75: 137.576 | H75: 61.7077 | I75: 131.597 | J75: 864.223 | K75: 3325.57 | L75: =H75/K75 -> 0.01855552582 | M75: =I75/K75 -> 0.03957126147 | N75: =LOG(H75/I75) -> -0.3289066294 | O75: =H75-I75 -> -69.8893 | P75: 0.05282813714 | Q75: 1.815378673 | R75: 1 | S75: 0.009623844646
A76: Bikonta/Diaphoratickes | B76: BIKONT | C76: 72 | D76: =IF(E76<2,0,1) -> 1 | E76: 12 | F76: 2.04739 | G76: 585.35 | H76: 337.354 | I76: 159.918 | J76: 780.452 | K76: 3395.46 | L76: =H76/K76 -> 0.09935443209 | M76: =I76/K76 -> 0.04709759502 | N76: =LOG(H76/I76) -> 0.3241885143 | O76: =H76-I76 -> 177.436 | P76: 0.06199860816 | Q76: 5.63704839 | R76: 1 | S76: 0.04400520203
A77: Naegleria gruberi | B77: Ngru | C77: 73 | D77: =IF(E77<2,0,1) -> 0 | E77: 1 | F77: 13.9355 | G77: 405.358 | H77: 1135.48 | I77: 1346.51 | J77: 686 | K77: 3007 | L77: =H77/K77 -> 0.3776122381 | M77: =I77/K77 -> 0.4477918191 | N77: =LOG(H77/I77) -> -0.074030094 | O77: =H77-I77 -> -211.03 | P77: 0.6995477086 | Q77: 1.000903685 | R77: 1 | S77: 0.01675472374
A78: Ancestral eukaryote (root) | B78: LECA | C78: 74 | D78: =IF(E78<2,0,1) -> 1 | E78: 13 | F78: 0 | G78: 0 | H78: 0 | I78: 0 | J78: 177.348 | K78: 3218.03 | L78: =H78/K78 -> 0 | M78: =I78/K78 -> 0
